Cogmind - Beta 16 @@@ ROGUE MODE // 2025.11.01 @ 01:07:58 Player: Mogmind Result: Destroyed by 8I-8YQ(R) with Subdweller Laser Performance ------------- Evolutions (0) 0 Regions Visited (2) 400 Robots Destroyed (14) 70 Value Destroyed (430) 430 Prototype IDs (0) 0 Alien Tech Used (0) 0 Bonus (0) 0 TOTAL SCORE: 900 Bonus ------- None Cogmind --------- Core Integrity 0/250 Matter 231/300 Energy 99/100 System Corruption 0% Temperature Cool (6) Movement Core (50) Location -10/Subcaves Parts ------- > --- POWER (1) -------- (None) > --- PROPULSION (2) --- (None) > --- UTILITY (2) ------ (None) > --- WEAPON (2) ------- (None) > --- INVENTORY (5) ---- Light Treads Large Storage Unit Power Shielding Shotgun Makeshift Spear Peak State ------------ > --- POWER ------------ Ion Engine > --- PROPULSION ------- Light Treads Light Treads > --- UTILITY ---------- Medium Storage Unit Large Storage Unit > --- WEAPON ----------- Improved Light Cannon Improved Light Cannon > --- INVENTORY -------- Ion Engine Subdweller Power Source Light Treads Light Treads Light Treads Heat Sink Large Storage Unit Signal Interpreter Signal Interpreter Power Shielding Shotgun Shotgun Improved Light Cannon Improved Light Cannon Mining Laser [Rating: 11] Favorites ----------- Power Ion Engine Engine Ion Engine Propulsion Light Treads Treads Light Treads Leg Aluminum Leg Utility Medium Storage Unit Storage Medium Storage Unit Weapon Improved Light Cannon Energy Gun Medium Laser Ballistic Gun Assault Rifle Ballistic Cannon Improved Light Cannon Special Weapon Mining Laser Build | -11 -10 -10 ------- Run | Yrd Mat Sub Slots Evolved . | . . . Power . | . . . Propulsion . | . . . Utility . | . . . Weapon . | . . . Parts Attached 21 | 6 12 3 Power 3 | 1 2 . Engine 3 | 1 2 . Core . | . . . Reactor . | . . . Propulsion 6 | 2 3 1 Treads 3 | . 2 1 Leg 3 | 2 1 . Wheel . | . . . Hover . | . . . Flight . | . . . Utility 4 | 1 3 . Device . | . . . Storage 4 | 1 3 . Processor . | . . . Hackware . | . . . Protection . | . . . Artifact . | . . . Weapon 8 | 2 4 2 Energy Gun 3 | 1 2 . Energy Cannon . | . . . Ballistic Gun 1 | 1 . . Ballistic Cannon 3 | . 2 1 Launcher . | . . . Special Weapon 1 | . . 1 Impact Weapon . | . . . Slashing Weapon . | . . . Piercing Weapon . | . . . Special Melee Weapon . | . . . Unidentified Prototypes . | . . . Parts Lost 5 | . 4 1 Power 2 | . 2 . Propulsion 1 | . 1 . Utility . | . . . Weapon 2 | . 1 1 Highest Loss Streak 4 | . 4 1 To Critical Strikes . | . . . Average Backups 10 | 4 11 11 Power 1 | . 1 1 Propulsion 2 | 3 3 2 Utility 3 | . 3 4 Weapon 3 | . 3 3 Tool/Special . | . . . Unused Backups 17 | . 3 14 Power 2 | . . 2 Propulsion 5 | . 3 2 Utility 6 | . . 6 Weapon 4 | . . 4 Tool/Special . | . . . Average Slot Usage (%) 85 | . 94 69 Engine 9 | . 9 9 Treads 18 | . 17 19 Leg 6 | . 10 . Storage 24 | . 27 19 Energy Gun 6 | . 9 . Ballistic Gun 2 | . 4 . Ballistic Cannon 14 | . 14 15 Special Weapon 1 | . . 3 Peak Build Rating 11 | 6 11 11 Average Rating 7 | 4 8 7 On Entrance 5 | . 6 11 Avg Prop Armor Cover (%) . | . . . Naked Turns 138 | . . 138 Heaviest Build 43 | 12 43 43 Greatest Support 40 | 20 40 40 Greatest Overweight (x) 11 | . 11 1 Average Overweight (x) . | . . . Largest Inventory Capacity 15 | 8 15 15 Average Capacity 13 | 7 14 11 Most Carried 15 | 6 15 15 Average Carried 11 | 4 11 11 Final Capacity 15 | 8 15 5 Final Carried 15 | 6 15 5 Class Distribution -------------------- 100% | Mutant Dominant Class ---------------- Mutant | -10/Materials Mutant | -10/Subcaves Resources | -11 -10 -10 ----------- Run | Yrd Mat Sub Matter Collected 566 | 247 289 30 Remotely . | . . . Salvage Created 447 | 86 342 19 Parts 25 | 3 21 1 Haulers Intercepted . | . . . Recyclers Shooed . | . . . Parts Field Recycled . | . . . Retrieved Matter . | . . . Parts Self-Destructed 2 | . . 2 Prevented . | . . . Parts Restored . | . . . Kills | -11 -10 -10 ------- Run | Yrd Mat Sub Combat Hostiles Destroyed 13 | . 12 1 Guns 8 | . 8 . Cannons 4 | . 3 1 Classes Destroyed 4 | 1 3 . Recycler 1 | 1 . . Swarmer 3 | . 3 . Grunt 7 | . 7 . Subdweller 3 | . 2 1 Best Kill Streak 5 | 1 5 1 Combat Bots Only 5 | . 5 1 Max Kills in Single Turn 1 | 1 1 1 Gunslinging . | . . . Exploded . | . . . Melee . | . . . Uniques/NPCs Destroyed . | . . . Combat | -11 -10 -10 -------- Run | Yrd Mat Sub Hostile Shots Fired 118 | . 97 21 Missed 26 | . 21 5 Hits 92 | . 76 16 Projectile 92 | . 76 16 Critical Strikes 1 | . 1 . Damage Taken 1259 | . 886 373 Core 252 | . 140 112 Absorbed by Shields . | . . . Core Remaining (%) 100 | 100 . . Volleys Fired 76 | 11 44 21 Largest 2 | 1 2 2 Hottest 115 | 50 115 100 Shots Fired 121 | 11 85 25 Gun 64 | 11 53 . Cannon 40 | . 32 8 Launcher . | . . . Special 17 | . . 17 Kinetic 52 | . 44 8 Thermal 69 | 11 41 17 Explosive . | . . . Electromagnetic . | . . . Robot Hit Streak 12 | 3 11 12 Robot Miss Streak 3 | 3 3 1 Penetration Max . | . . . Secondary Targets 1 | . 1 . Max Gunslinging Chain 1 | . 1 . Shots Hit Robots 68 | 6 56 6 Core Hits 26 | 2 20 4 Critical Kills . | . . . Critical Parts Destroyed . | . . . Critical Strikes 3 | . 3 . Burn 3 | . 3 . Melee Attacks . | . . . Impact . | . . . Slashing . | . . . Piercing . | . . . Sneak Attacks . | . . . Combat Hostiles . | . . . Follow-up Attacks . | . . . Damage Inflicted 1139 | 75 928 136 Guns 516 | 75 441 . Cannons 623 | . 487 136 Explosions . | . . . Melee . | . . . Ramming . | . . . Kinetic 678 | . 542 136 Thermal 461 | 75 386 . Explosive . | . . . Electromagnetic . | . . . Impact . | . . . Slashing . | . . . Piercing . | . . . Highest Corruption . | . . . Average Corruption . | . . . Corruption Purged . | . . . Corruption Blocked . | . . . Overload Shots . | . . . Overflow Damage . | . . . Projectiles . | . . . Explosions . | . . . Melee . | . . . Knockbacks 8 | . 7 1 Impact . | . . . Kinetic 7 | . 6 1 Secondary 1 | . 1 . Self-Inflicted Damage . | . . . Shots . | . . . Rammed . | . . . Targets Rammed . | . . . Kicked . | . . . Crushed . | . . . Highest Temperature 783 | 40 783 . Average Temperature 177 | 17 202 . Received Heat Transfer 468 | . 426 42 Effects 16 | . 16 . Shutdowns 1 | . 1 . Energy Bleed 3 | . 3 . Interference 2 | . 2 . Matter Decay 1 | . 1 . Short Circuit 2 | . 2 . Damage (minor) 4 | . 4 . Damage (major) 3 | . 3 . Siege Activations . | . . . Martial Activations . | . . . Shielding Activations . | . . . Robots Disrupted . | . . . Combat Hostiles . | . . . Robots Corrupted . | . . . Combat Hostiles . | . . . Parts Fried . | . . . Impact Corruptions . | . . . Robots Melted 1 | . 1 . Combat Hostiles 1 | . 1 . Parts Melted 4 | . 4 . Heat Transferred 1517 | 222 1295 . Parts Sabotaged . | . . . Parts Stolen . | . . . Parts Stripped . | . . . Power Chain Reactions . | . . . Alert | -11 -10 -10 ------- Run | Yrd Mat Sub Maximum Alert Level . | . . . Low Security (%) 100 | 100 100 . Level 1 . | . . . Level 2 . | . . . Level 3 . | . . . Level 4 . | . . . Level 5 . | . . . High Security . | . . . Max Security . | . . . Peak Influence 126 | 5 126 . Initial . | . . . Average 37 | . 43 . Influence Increases 288 | 5 283 . Destroy 0b10 Robot/C 200 | . 200 . Destroy 0b10 Robot/NC 5 | 5 . . Destroy Leader 50 | . 50 . Disable Machine 15 | . 15 . Destroy Structure 3 | . 3 . Lose Combat Pursuer 15 | . 15 . Influence Decreases 288 | 5 283 . Time Decay 248 | 5 243 . Lost Part 40 | . 40 . Squads Dispatched 2 | . 2 . Investigation 1 | . 1 . Extermination . | . . . Reinforcement 1 | . 1 . Assault . | . . . Garrison . | . . . Intercept . | . . . Searches Triggered . | . . . Construction Impeded . | . . . Haulers Reinforced . | . . . Active Scanning Responses . | . . . Cargo Convoy Interrupts . | . . . Stealth | -11 -10 -10 --------- Run | Yrd Mat Sub Distress Signals 1 | . 1 . Communications Jammed . | . . . Distress Signals . | . . . Times Spotted 30 | . 18 12 Peak Tracking Total 6 | . 6 4 Tactical Retreats 3 | . 1 2 Traps | -11 -10 -10 ------- Run | Yrd Mat Sub Traps Triggered 1 | . 1 . Indirectly . | . . . Trap Hack Attempts . | . . . Triggered . | . . . Disarmed . | . . . Reprogrammed . | . . . Reused . | . . . Traps Extracted . | . . . Installed . | . . . Triggered . | . . . Machines | -11 -10 -10 ---------- Run | Yrd Mat Sub Machines Disabled 1 | . 1 . Max in Single Turn 1 | . 1 . Machines Repaired . | . . . Machines Dismantled . | . . . Machines Sabotaged . | . . . Overloaded Fab Kills . | . . . Hacking | -11 -10 -10 --------- Run | Yrd Mat Sub Machines Accessed 1 | . . 1 Terminals . | . . . Fabricators . | . . . Repair Stations . | . . . Recycling Units . | . . . Scanalyzers . | . . . Garrison Access . | . . . Total Hacks 5 | . . 5 Successful 5 | . . 5 Failed . | . . . Catastrophic . | . . . Database Lockouts . | . . . Manual . | . . . Terminals . | . . . Fabricators . | . . . Repair Stations . | . . . Recycling Units . | . . . Scanalyzers . | . . . Garrison Access . | . . . Terminal Hacks 5 | . . 5 Record 5 | . . 5 Fabricator Hacks . | . . . Repair Station Hacks . | . . . Recycling Unit Hacks . | . . . Scanalyzer . | . . . Garrison Access Hacks . | . . . Unauthorized Hacks . | . . . Terminals . | . . . Fabricators . | . . . Repair Stations . | . . . Recycling Units . | . . . Scanalyzers . | . . . Garrison Access . | . . . Data Cores Recovered . | . . . Used . | . . . Hacking Detections . | . . . Full Trace Events . | . . . Feedback Events . | . . . Feedback Blocked . | . . . Robot Schematics Acquired . | . . . Robots Built . | . . . Authchips . | . . . Time . | . . . Total Robot Build Rating . | . . . Part Schematics Acquired . | . . . Parts Built . | . . . Authchips . | . . . Time . | . . . Total Part Build Rating . | . . . Part Studies Acquired . | . . . Parts Repaired . | . . . Time . | . . . Parts Recycled . | . . . Recycled Matter . | . . . Retrieved Matter . | . . . Retrieved Components . | . . . Parts Scanalyzed . | . . . Part Schematics Acquired . | . . . Parts Damaged . | . . . Bothacking | -11 -10 -10 ------------ Run | Yrd Mat Sub Used RIF Installer . | . . . Robots Hacked . | . . . Non-combat . | . . . Combat . | . . . Robot Hacks Applied . | . . . Relay Couplers Released . | . . . Fabnet Peak Effective % . | . . . Robots Rewired . | . . . Allies Hacked . | . . . Hacks Repelled . | . . . Allies | -11 -10 -10 -------- Run | Yrd Mat Sub Total Allies . | . . . Largest Group . | . . . Highest-Rated Group . | . . . Highest-Rated Ally . | . . . Total Orders . | . . . Ally Attacks . | . . . Total Damage . | . . . Kills . | . . . Allies Corrupted . | . . . Allies Melted . | . . . Intel | -11 -10 -10 ------- Run | Yrd Mat Sub Active Infowar (turns) . | . . . Robot Analysis Total . | . . . Derelict Logs Recovered 1 | . . 1 Drone Launches . | . . . Drone Recoveries . | . . . Exploration | -11 -10 -10 ------------- Run | Yrd Mat Sub Turns Passed 1366 | 123 788 455 Spaces Moved 745 | 73 298 374 Core 276 | 2 2 272 Treads 309 | . 207 102 Legs 160 | 71 89 . Wheels . | . . . Hover . | . . . Flight . | . . . Fastest Speed 50 | 50 120 50 Average Speed 137 | 118 198 93 Slowest Speed 600 | 120 600 240 Overloaded Moves . | . . . Propulsion Burnouts . | . . . Robots Hopped . | . . . Potential Cave-ins . | . . . Cave-ins Triggered . | . . . Exploration Rate (%) 30 | 4 38 48 Regions Visited 2 Branch Regions 1 Pre-discovered Areas 2 | . . 2 Known Exits Taken . | . . . Unknown Exits Taken 2 | 1 1 . Scrap Searched . | . . . Spaces Dug . | . . . Terrain Destroyed 2 | . 2 . Melee . | . . . Projectile 2 | . 2 . AOE . | . . . Terrain Rammed . | . . . Walls Destroyed . | . . . Machines Disabled . | . . . Actions | -11 -10 -10 --------- Run | Yrd Mat Sub Total 932 | 96 415 421 Wait 42 | 1 27 14 Move 743 | 72 297 374 Hop . | . . . Pick Up 28 | 6 18 4 Fast Attach 10 | 6 4 . Attach 7 | . 6 1 Detach 5 | . 4 1 Swap 6 | . 4 2 Drop 15 | . 11 4 Fire 76 | 11 44 21 Melee . | . . . Ram . | . . . Kick . | . . . Crush . | . . . Escape Stasis . | . . . Rewire . | . . . Trap . | . . . Miscellaneous . | . . . Route ------- -11/Scrapyard -10/Materials (discovered 3 exits: [*Mat] / [*Min] / *Sub) -10/Subcaves (discovered 1 exit: Rec) History --------- Turn | Location | Event 5 | -11/Scrapyard | Discovered new exit (range 16) 124 | -11/Scrapyard | Entered Materials 309 | -10/Materials | Build established: Mutant 407 | -10/Materials | Lost 4 parts (2p1n1w) 420 | -10/Materials | Discovered new exit (range 13) 623 | -10/Materials | Core integrity fell below 50% 624 | -10/Materials | Derelicts attacked the area 736 | -10/Materials | Discovered new exit (range 8) 758 | -10/Materials | Discovered new exit (range 13) 912 | -10/Materials | Entered Subcaves 913 | -10/Subcaves | Approached by a straggling Scientist 1185 | -10/Subcaves | Visited Clippyterm 1192 | -10/Subcaves | Learned location of Deep Caves (-6) 1192 | -10/Subcaves | Learned Factory fabricator intel 1206 | -10/Subcaves | A swath of the cavern ceiling suddenly collapsed 1215 | -10/Subcaves | Ambushed by swarm of Subdwellers 1215 | -10/Subcaves | Ambushed by Subdwellers from Twisted Machinery 1228 | -10/Subcaves | Core integrity fell below 20% 1228 | -10/Subcaves | Released all parts (6) 1239 | -10/Subcaves | Learned location of Zion (-6) 1239 | -10/Subcaves | Met a Zionite searching for "candidates" 1249 | -10/Subcaves | Identified exit to Recycling 1367 | -10/Subcaves | Destroyed by 8I-8YQ(R) with Subdweller Laser Last Messages --------------- 01228_ Released Imp. Light Cannon. 01231_ W5-SIZ(R) affixes Scrap Shield Fragment to Scrap Shield. 01236_ M0-BSE(z): "She is not going to be happy we haven't found any suitable candidates yet." 01239_ M0-BSE(z): "Hey you! It's really dangerous down here, I feel that you could die at any moment. For your health and safety might I suggest a trip to Zion?" World map updated: -6/Zion. 01249_ Acquired derelict log, extracted data. Loading 1 Recycling entrance... 01253_ KH-HHB(z) destroyed. 01305_ Acquired 15 matter. 01308_ II-7R7(u) tweaks Twisted Machinery. 01319_ Acquired 5 matter. 01330_ Dropped Heat Sink. 01331_ Acquired Mak. Spear. 01332_ Acquired 10 matter. 01332_ 3M-CMA(O) collects matter. Map ----- +----------------------------------------------------+ | ?# "" " #????###### #??# #??# ### | | ?# " ####???????## #??#" ####??# | | ?## "" ## #????????###??### ##?????# | | ??## " #?#????????????## ######?# ### | | ???##" ## #??????????## ## #### ### | | ????## #?????????# #?## # | | ?????##"" ### # #?????????# #### | | ??????#"" ##? #? "#????????## | | ???####"" #? ## ""#????????# | | ??## """" "## """????? | | ?## # ??????? ## ### | | ?# ##??????????# # ##?## #?? | | ?# ## #???????#### #????### ## #? | | ?## #### #??##### ## ???????## ### #? | | ??# #??## ### ????????#####?# #? | | ??###### ?????????????? #? | | ???# ## #????? "#????????????? ####? | | ???# #### ## ###?????""????????????? ##???? | | ???## ####??# ##??????? "?????????????# ?????? | | ????###?????# ###???????? #?????????????##?????? | | ???????????## ##????????? ##???????????????????? | | ?????##????# #????????? R #???????????????????? | | ?????# ##### #?????????* #????????????????????? | | ?????? # ########## #????????????????????? | | ??????? ## ## ## # ## ##???????????????????? | | ???????# ?# @ #???????????????????? | | ???????# ### ! # ######## #???????????????????? | | ????#### ## ######????????????????????????????? | | ??### #?????????????????????????????????? | | ?## ##?????????????????????????????????? | | ?# ##??????????????????????????????????? | | ?# #???????????????????????????????????? | | ?# ##??????????????????????????????????? | | ?# #??????????????????????????????????? | | ?## #??????????????????????????????????? | | ??## #??????????????????????????????????? | | ???# ] ###??????????????????????????????????? | | ???#### ##????????????????????????????????????? | | ??????## ##????????????????????????????????????? | | ???????### #######??????????????????????????????? | | ????????## ## ###????????????????????????????? | | ????????# ##???????????????????????????? | | ???????## ## #???????????????????????????? | | ?????### ### #???????????????????????????? | | ????## #?# ##???????????????????????????? | | ?#### ### ####????????????????????????????? | | ?# ## ##???????????????????????????????? | | ?## #????????????????????????????????? | | ??##### ##????????????????????????????????? | | ?????? ##?????????????????????????????????? | +----------------------------------------------------+ Best States ------------- Heat Dissipation 25 Energy Generation 10 Energy Capacity 250 Matter Stores 300 Matter Capacity 300 Sight Range 16 Terrain Scan Density 10 Evasion (%) 55 Recoil Reduction 2 Item Schematics ----------------- None Robot Schematics ------------------ None Fabricated ------------ Nothing Repaired ---------- Nothing Studied --------- None Alien Tech Used ----------------- None Achievements -------------- None Challenges ------------ None Game ------ Seed CoolantCompactNeutralizer Manual? 0 Play Time 00:17:44 Cumulative 14.3 hours Start 2025.11.01 @ 00:51:53 End 2025.11.01 @ 01:07:58 Sessions 1 Manual Loads 0 Difficulty Rogue Special Mode None Game No. 18 Rogue 18 Adventurer 0 Explorer 0 Win Type - Total 0 Types 0/0/0/0/0/0/0/0/0/0 Lore% 6 Gallery% 17 Achievement% 13 Wizard Run 0 Options --------- Layout 1 ASCII 0 Keyboard 1 Movement Vi Keybinds 0 Fullscreen 1 Font 24/Smallcaps Map View 50x35 Zoom Use 0% Tactical HUD 1 Map Filters NONE Filters NONE Steam 1 RUN: 534ea71a-b8c6-423c-959c-585dbc8636b6